fUSD/lending_fUSD_20240719
["ID","MTS","AMOUNT","RATE_DAILY","PERIOD"]
[332653496,1721405495955,-1049.36,0.00033972,14]
[332653497,1721405495966,-533.79,0.00033972,14]
[332653498,1721405495977,-245.1073627,0.00033972,14]
[332653499,1721405495988,-1990.65,0.00033972,14]
[332653500,1721405495998,-1730.51,0.00033972,14]
[332653501,1721405496007,-551.36,0.00033972,14]
[332653502,1721405496016,-1111.98,0.00033972,14]
[332653503,1721405496027,-4326.01,0.00033972,14]
[332653504,1721405496037,-588.86,0.00033972,14]
[332653505,1721405496047,-1572.72,0.00033972,14]
[332653506,1721405496057,-500.0,0.00033972,14]
[332653507,1721405496067,-760.92,0.00033972,14]
[332653508,1721405496079,-1936.7,0.00033972,14]
[332653509,1721405496088,-500.0,0.00033972,14]
[332653510,1721405496099,-500.0,0.00033972,14]
[332653511,1721405496110,-2053.54,0.00033972,14]
[332653512,1721405496120,-2486.51,0.00033972,14]
[332653513,1721405496130,-4288.83,0.00033972,14]
[332653514,1721405496140,-500.0,0.00033972,14]
[332653515,1721405496151,-2391.82,0.00033972,14]
[332653516,1721405496162,-509.23489689,0.00033972,14]
[332653517,1721405496173,-996.04,0.00033972,14]
[332653518,1721405496182,-702.75,0.00033972,14]
[332653519,1721405496191,-500.0,0.00033972,14]
[332653520,1721405496200,-500.0,0.00033972,14]
[332653521,1721405496209,-500.0,0.00033972,14]
[332653522,1721405496218,-500.0,0.00033972,14]
[332653523,1721405496228,-1236.2,0.00033972,14]
[332653524,1721405496238,-1419.38,0.00033972,14]
[332653525,1721405496250,-500.0,0.00033972,14]
[332653526,1721405496260,-2723.49,0.00033972,14]
[332653527,1721405496269,-500.0,0.00033972,14]
[332653528,1721405496279,-1245.55,0.00033972,14]
[332653529,1721405496291,-503.90349072,0.00033972,14]
[332653530,1721405496302,-500.0,0.00033972,14]
[332653531,1721405496313,-1708.14,0.00033972,14]
[332653532,1721405496323,-500.0,0.00033972,14]
[332653533,1721405496335,-304.82505889,0.00033972,14]
[332653534,1721405496344,-2111.97,0.00033972,14]
[332653535,1721405496354,-500.0,0.00033972,14]
[332653536,1721405496364,-500.0,0.00033972,14]
[332653537,1721405496373,-2049.75,0.00033972,7]
[332653538,1721405496383,-500.0,0.00033972,14]
[332653539,1721405496392,-3150.3,0.00033972,14]
[332653540,1721405496403,-583.78,0.00033972,14]
[332653541,1721405496412,-1289.1,0.00033972,14]
[332653542,1721405496493,-766.34,0.00033972,14]
[332653543,1721405496503,-913.26,0.00033972,14]
[332653544,1721405496513,-2072.22,0.00033972,14]
[332653545,1721405496523,-1118.18,0.00033972,14]
[332653546,1721405496533,-2467.95,0.00033972,14]
[332653547,1721405496542,-2287.86,0.00033972,14]
[332653548,1721405496551,-500.0,0.00033972,14]
[332653549,1721405496561,-3489.46,0.00033972,14]
[332653550,1721405496571,-823.26,0.00033972,14]
[332653551,1721405496581,-1668.58,0.00033972,14]
[332653552,1721405496592,-500.0,0.00033972,14]
[332653553,1721405496602,-500.0,0.00033972,14]
[332653554,1721405496613,-1578.39,0.00033972,14]
[332653555,1721405496624,-500.0,0.00033972,14]
[332653556,1721405496634,-500.0,0.00033972,14]
[332653557,1721405496646,-500.0,0.00033972,14]
[332653558,1721405496656,-541.63,0.00033972,14]
[332653559,1721405496665,-756.25,0.00033972,14]
[332653560,1721405496674,-500.0,0.00033972,14]
[332653561,1721405496684,-507.14548061,0.00033972,14]
[332653562,1721405496695,-500.0,0.00033972,14]
[332653563,1721405496704,-1412.59,0.00033972,14]
[332653564,1721405496713,-1067.11,0.00033972,14]
[332653565,1721405496722,-2948.42,0.00033972,14]
[332653566,1721405496732,-500.0,0.00033972,14]
[332653567,1721405496742,-784.93,0.00033972,14]
[332653568,1721405496751,-500.0,0.00033972,14]
[332653569,1721405496760,-640.01,0.00033972,14]
[332653570,1721405496771,-513.52,0.00033972,14]
[332653571,1721405496781,-1028.44,0.00033972,14]
[332653572,1721405496793,-2252.48,0.00033972,14]
[332653573,1721405496802,-500.0,0.00033972,14]
[332653574,1721405496812,-3712.8,0.00033972,14]
[332653575,1721405496822,-2021.9,0.00033972,14]
[332653576,1721405496831,-1403.26,0.00033972,14]
[332653577,1721405496840,-500.0,0.00033972,14]
[332653578,1721405496851,-674.78,0.00033972,14]
[332653579,1721405496860,-937.06,0.00033972,14]
[332653580,1721405496869,-2643.01,0.00033972,14]
[332653581,1721405496879,-1627.03,0.00033972,14]
[332653582,1721405496888,-2462.55,0.00033972,14]
[332653583,1721405496900,-500.0,0.00033972,14]
[332653584,1721405496909,-500.0,0.00033972,14]
[332653585,1721405496919,-3287.52,0.00033972,14]
[332653586,1721405496928,-500.0,0.00033972,14]
[332653587,1721405496937,-1936.03,0.00033972,14]
[332653588,1721405496947,-2333.6,0.00033972,14]
[332653589,1721405496959,-1393.59,0.00033972,14]
[332653590,1721405496970,-1525.3,0.00033972,14]
[332653591,1721405496981,-500.0,0.00033972,14]
[332653592,1721405496991,-500.0,0.00033972,14]
[332653593,1721405497001,-500.0,0.00033972,14]
[332653594,1721405497013,-573.94,0.00033972,14]
[332653595,1721405497023,-500.0,0.00033972,14]
[332653596,1721405497033,-1371.28,0.00033972,14]
[332653597,1721405497042,-3469.57,0.00033972,14]
[332653598,1721405497054,-631.52,0.00033972,14]
[332653599,1721405497063,-588.43,0.00033972,14]
[332653600,1721405497073,-2176.17,0.00033972,14]
[332653601,1721405497082,-1955.31,0.00033972,14]
[332653602,1721405497091,-500.0,0.00033972,14]
[332653603,1721405497102,-2427.02,0.00033972,14]
[332653604,1721405497112,-500.0,0.00033972,14]
[332653605,1721405497124,-500.0,0.00033972,14]
[332653606,1721405497133,-500.0,0.00033972,14]
[332653607,1721405497143,-1828.59,0.00033972,14]
[332653608,1721405497155,-5486.25,0.00033972,14]
[332653609,1721405497164,-1223.8,0.00033972,14]
[332653610,1721405497173,-500.0,0.00033972,14]
[332653611,1721405497182,-2146.48,0.00033972,14]
[332653612,1721405497192,-3526.03,0.00033972,14]
[332653613,1721405497202,-764.16,0.00033972,14]
[332653614,1721405497211,-4860.92,0.00033972,14]
[332653615,1721405497221,-500.0,0.00033972,14]
[332653616,1721405497231,-911.04,0.00033972,14]
[332653617,1721405497241,-500.0,0.00033972,14]
[332653618,1721405497253,-500.0,0.00033972,14]
[332653619,1721405497263,-1186.38,0.00033972,14]
[332653620,1721405497273,-803.43,0.00033972,14]
[332653621,1721405497282,-1434.17,0.00033972,14]
[332653622,1721405497292,-2377.08,0.00033972,14]
[332653623,1721405497302,-1324.17,0.00033972,14]
[332653624,1721405497311,-579.72,0.00033972,14]
[332653625,1721405497322,-1063.45,0.00033972,14]
[332653626,1721405497334,-997.28,0.00033972,14]
[332653627,1721405497345,-500.0,0.00033972,14]
[332653628,1721405497355,-1722.45,0.00033972,14]
[332653629,1721405497364,-500.0,0.00033972,14]
[332653630,1721405497374,-1747.58,0.00033972,14]
[332653631,1721405497383,-691.87,0.00033972,14]
[332653632,1721405497393,-2778.31,0.00033972,14]
[332653633,1721405497404,-764.08,0.00033972,14]
[332653634,1721405497414,-731.94,0.00033972,14]
[332653635,1721405497423,-2370.14,0.00033972,14]
[332653636,1721405497432,-746.56,0.00033972,14]
[332653637,1721405497442,-2176.52,0.00033972,14]
[332653638,1721405497451,-500.0,0.00033972,14]
[332653639,1721405497460,-843.15,0.00033972,14]
[332653640,1721405497469,-946.47,0.00033972,14]
[332653641,1721405497479,-2612.42,0.00033972,14]
[332653642,1721405497489,-3433.1,0.00033972,14]
[332653643,1721405497498,-3257.38,0.00033972,14]
[332653644,1721405497507,-4807.83,0.00033972,14]
[332653645,1721405497517,-776.7,0.00033972,14]
[332653646,1721405497526,-6084.24,0.00033972,14]
[332653647,1721405497535,-3104.0,0.00033972,14]
[332653648,1721405497545,-500.0,0.00033972,14]
[332653649,1721405497554,-929.51,0.00033972,14]
[332653650,1721405497563,-1119.11,0.00033972,14]
[332653651,1721405497572,-591.57,0.00033972,14]
[332653652,1721405497582,-773.81,0.00033972,14]
[332653653,1721405497591,-886.94,0.00033972,14]
[332653654,1721405497601,-500.0,0.00033972,14]
[332653655,1721405497611,-834.14,0.00033972,14]
[332653656,1721405497621,-500.0,0.00033972,14]
[332653657,1721405497630,-520.14,0.00033972,14]
[332653658,1721405497639,-3729.59,0.00033972,14]
[332653659,1721405497650,-500.0,0.00033972,14]
[332653660,1721405497660,-564.41,0.00033972,14]
[332653661,1721405497669,-500.0,0.00033972,14]
[332653662,1721405497678,-2202.35,0.00033972,14]
[332653663,1721405497687,-500.0,0.00033972,14]
[332653664,1721405497697,-4444.81,0.00033972,14]
[332653665,1721405497706,-500.0,0.00033972,14]
[332653666,1721405497715,-6544.05,0.00033972,14]
[332653667,1721405497725,-12975.5,0.00033972,14]
[332653668,1721405497734,-1479.28,0.00033972,14]
[332653669,1721405497743,-500.0,0.00033972,14]
[332653670,1721405497752,-517.39,0.00033972,14]
[332653671,1721405497762,-7598.05,0.00033972,14]
[332653672,1721405497771,-500.0,0.00033972,14]
[332653673,1721405497780,-1223.02,0.00033972,14]
[332653674,1721405497790,-2618.85,0.00033972,14]
[332653675,1721405497799,-500.0,0.00033972,14]
[332653676,1721405497809,-500.0,0.00033972,14]
[332653677,1721405497819,-500.0,0.00033972,14]
[332653678,1721405497828,-5744.48,0.00033972,14]
[332653679,1721405497838,-1017.25,0.00033972,14]
[332653680,1721405497847,-597.01,0.00033972,14]
[332653681,1721405497857,-1155.3,0.00033972,14]
[332653682,1721405497867,-4429.22,0.00033972,14]
[332653683,1721405497876,-783.69,0.00033972,14]
[332653684,1721405497885,-590.27,0.00033972,14]
[332653685,1721405497894,-500.0,0.00033972,14]
[332653686,1721405497906,-3470.76,0.00033972,14]
[332653687,1721405497915,-500.0,0.00033972,14]
[332653688,1721405497925,-2242.37,0.00033972,14]
[332653689,1721405497934,-501.12,0.00033972,14]
[332653690,1721405497948,-500.0,0.00033972,14]
[332653691,1721405497957,-2671.8,0.00033972,14]
[332653692,1721405497967,-1458.44,0.00033972,14]
[332653693,1721405497977,-850.9,0.00033972,14]
[332653694,1721405497986,-3379.93,0.00033972,14]
[332653695,1721405497995,-782.77,0.00033972,14]
[332653696,1721405498005,-983.6,0.00033972,14]
[332653697,1721405498014,-2276.75,0.00033972,14]
[332653698,1721405498023,-2517.04,0.00033972,14]
[332653699,1721405498033,-7579.61,0.00033972,14]
[332653700,1721405498042,-1306.08,0.00033972,14]
[332653701,1721405498051,-528.52,0.00033972,14]
[332653702,1721405498060,-612.81,0.00033972,14]
[332653703,1721405498069,-2573.03,0.00033972,14]
[332653704,1721405498079,-1623.35,0.00033972,14]
[332653705,1721405498088,-662.31,0.00033972,14]
[332653706,1721405498097,-944.06,0.00033972,14]
[332653707,1721405498106,-4158.79,0.00033972,14]
[332653708,1721405498116,-500.0,0.00033972,14]
[332653709,1721405498125,-500.0,0.00033972,14]
[332653710,1721405498135,-823.61,0.00033972,14]
[332653711,1721405498144,-2052.86,0.00033972,14]
[332653712,1721405498156,-4173.55,0.00033972,14]
[332653713,1721405498166,-500.0,0.00033972,14]
[332653714,1721405498175,-3312.59,0.00033972,14]
[332653715,1721405498184,-2591.99,0.00033972,14]
[332653716,1721405498194,-500.0,0.00033972,14]
[332653717,1721405498203,-1670.33,0.00033972,14]
[332653718,1721405498213,-1110.3,0.00033972,14]
[332653719,1721405498223,-3295.96,0.00033972,14]
[332653720,1721405498234,-3203.29,0.00033972,14]
[332653721,1721405498243,-12713.43,0.00033972,14]
[332653722,1721405498256,-500.0,0.00033972,14]
[332653723,1721405498266,-9922.87,0.00033972,14]
[332653724,1721405498275,-12334.5,0.00033972,14]
[332653725,1721405498285,-2349.36,0.00033972,14]
[332653726,1721405498295,-1715.39,0.00033972,14]
[332653727,1721405498304,-1634.46,0.00033972,14]
[332653728,1721405498315,-2218.75,0.00033972,14]
[332653729,1721405498324,-1842.31,0.00033972,14]
[332653730,1721405498336,-579.83,0.00033972,14]
[332653731,1721405498345,-28938.05,0.00033972,14]
[332653732,1721405498354,-2574.56,0.00033972,14]
[332653733,1721405498364,-500.0,0.00033972,14]
[332653734,1721405498373,-6670.15,0.00033972,14]
[332653735,1721405498383,-9010.61,0.00033972,14]
[332653736,1721405498392,-951.45,0.00033972,14]
[332653737,1721405498405,-1645.9,0.00033972,14]
[332653738,1721405498418,-1951.67,0.00033972,14]
[332653739,1721405498427,-500.0,0.00033972,14]
[332653740,1721405498436,-1689.61,0.00033972,14]
[332653741,1721405498446,-714.02,0.00033972,14]
[332653742,1721405498456,-7708.62,0.00033972,14]
[332653743,1721405498465,-5729.14,0.00033972,14]
[332653744,1721405498475,-1322.64,0.00033972,14]
[332653745,1721405498484,-1063.5,0.00033972,14]
[332653746,1721405498493,-1362.93,0.00033972,14]
[332653747,1721405498503,-1299.48,0.00033972,14]
[332653748,1721405498511,-12312.14,0.00033972,14]
[332653749,1721405498520,-924.96,0.00033972,14]
[332653750,1721405498530,-1762.71,0.00033972,14]
[332653751,1721405498539,-7146.83,0.00033972,14]
[332653752,1721405498549,-500.0,0.00033972,14]
[332653753,1721405498559,-2889.83,0.00033972,14]
[332653754,1721405498569,-977.45,0.00033972,14]
[332653755,1721405498578,-500.0,0.00033972,14]
[332653756,1721405498588,-579.71,0.00033972,14]
[332653757,1721405498597,-4396.85,0.00033972,14]
[332653758,1721405498607,-7179.59,0.00033972,14]
[332653759,1721405498617,-502.88,0.00033972,14]
[332653760,1721405498626,-19689.3,0.00033972,14]
[332653761,1721405498635,-549.2434036,0.00033972,14]
[332653762,1721405498645,-1149.54,0.00033972,14]
[332653763,1721405498658,-3000.95,0.00033972,14]
[332653764,1721405498668,-3150.65,0.00033972,14]
[332653765,1721405498678,-12544.8,0.00033972,14]
[332653766,1721405498688,-1659.47,0.00033972,14]
[332653767,1721405498697,-2369.19,0.00033972,14]
[332653768,1721405498707,-500.0,0.00033972,14]
[332653769,1721405498716,-871.86,0.00033972,14]
[332653770,1721405498726,-1257.98,0.00033972,14]
[332653771,1721405498736,-500.0,0.00033972,14]
[332653772,1721405498746,-500.0,0.00033972,14]
[332653773,1721405498755,-33865.98,0.00033972,14]
[332653774,1721405498765,-2554.25,0.00033972,14]
[332653775,1721405498775,-585.26,0.00033972,14]
[332653776,1721405498784,-16039.8,0.00033972,14]
[332653777,1721405498794,-684.81,0.00033972,14]
[332653778,1721405498803,-5448.92,0.00033972,14]
[332653779,1721405498813,-500.0,0.00033972,14]
[332653780,1721405498822,-7767.51,0.00033972,14]
[332653781,1721405498832,-1115.03,0.00033972,14]
[332653782,1721405498841,-4546.82,0.00033972,14]
[332653783,1721405498850,-2290.4,0.00033972,14]
[332653784,1721405498859,-15549.95,0.00033972,14]
[332653785,1721405498868,-500.0,0.00033972,14]
[332653786,1721405498878,-1610.24,0.00033972,14]
[332653787,1721405498888,-713.98,0.00033972,14]
[332653788,1721405498897,-846.65,0.00033972,14]
[332653789,1721405498908,-500.0,0.00033972,14]
[332653790,1721405498918,-2566.11,0.00033972,14]
[332653791,1721405498927,-748.23,0.00033972,14]
[332653792,1721405498937,-7374.06,0.00033972,14]
[332653793,1721405498947,-12833.28,0.00033972,14]
[332653794,1721405498957,-2320.73,0.00033972,14]
[332653795,1721405498967,-504.43,0.00033972,14]
[332653796,1721405498978,-17988.02,0.00033972,14]
[332653797,1721405498988,-1344.07,0.00033972,14]
[332653798,1721405498998,-6295.21,0.00033972,14]
[332653799,1721405499007,-500.0,0.00033972,14]
[332653800,1721405499017,-13689.07,0.00033972,14]
[332653801,1721405499026,-4970.78,0.00033972,14]
[332653802,1721405499036,-2116.95,0.00033972,14]
[332653803,1721405499045,-2624.95,0.00033972,14]
[332653804,1721405499055,-500.0,0.00033972,14]
[332653805,1721405499064,-2812.54,0.00033972,14]
[332653806,1721405499073,-959.15,0.00033972,14]
[332653807,1721405499082,-1958.01,0.00033972,14]
[332653808,1721405499091,-500.0,0.00033972,14]
[332653809,1721405499100,-3410.57,0.00033972,14]
[332653810,1721405499110,-543.11,0.00033972,14]
[332653811,1721405499119,-7256.02,0.00033972,14]
[332653812,1721405499129,-1843.94,0.00033972,14]
[332653813,1721405499138,-518.99,0.00033972,14]
[332653814,1721405499148,-9013.11,0.00033972,14]
[332653815,1721405499159,-500.0,0.00033972,14]
[332653816,1721405499169,-500.0,0.00033972,14]
[332653817,1721405499178,-2927.81,0.00033972,14]
[332653818,1721405499188,-7140.38,0.00033972,14]
[332653819,1721405499198,-3548.25,0.00033972,14]
[332653820,1721405499207,-3936.33,0.00033972,14]
[332653821,1721405499217,-7123.89,0.00033972,14]
[332653822,1721405499227,-500.0,0.00033972,14]
[332653823,1721405499237,-2418.71,0.00033972,14]
[332653824,1721405499247,-500.0,0.00033972,14]
[332653825,1721405499260,-5061.23,0.00033972,14]
[332653826,1721405499270,-720.78,0.00033972,14]
[332653827,1721405499279,-1099.27,0.00033972,14]
[332653828,1721405499289,-7161.68,0.00033972,14]
[332653829,1721405499299,-4343.92,0.00033972,14]
[332653830,1721405499308,-500.0,0.00033972,14]
[332653831,1721405499317,-1065.22,0.00033972,14]
[332653832,1721405499327,-5135.62,0.00033972,14]
[332653833,1721405499338,-16158.34,0.00033972,14]
[332653834,1721405499347,-500.0,0.00033972,14]
[332653835,1721405499357,-2158.0,0.00033972,14]
[332653836,1721405499366,-500.0,0.00033972,14]
[332653837,1721405499375,-845.57,0.00033972,14]
[332653838,1721405499384,-5083.59,0.00033972,14]
[332653839,1721405499393,-921.29,0.00033972,14]
[332653840,1721405499404,-9737.63,0.00033972,14]
[332653841,1721405499414,-501.83215169,0.00033972,14]
[332653842,1721405499423,-2072.08,0.00033972,14]
[332653843,1721405499433,-500.0,0.00033972,14]
[332653844,1721405499442,-1561.89,0.00033972,14]
[332653845,1721405499451,-4838.92,0.00033972,14]
[332653846,1721405499461,-6611.96,0.00033972,14]
[332653847,1721405499470,-500.0,0.00033972,2]
[332653848,1721405499480,-500.0,0.00033972,14]
[332653849,1721405499490,-719.18,0.00033972,14]
[332653850,1721405499499,-500.0,0.00033972,14]
[332653851,1721405499508,-500.0,0.00033972,14]
[332653852,1721405499517,-500.0,0.00033972,14]
[332653853,1721405499526,-8105.6,0.00033972,14]
[332653854,1721405499536,-4351.25,0.00033972,14]
[332653855,1721405499545,-673.49,0.00033972,14]
[332653856,1721405499554,-1381.41,0.00033972,14]
[332653857,1721405499563,-1724.11,0.00033972,14]
[332653858,1721405499572,-2493.32,0.00033972,14]
[332653859,1721405499581,-4816.46,0.00033972,14]
[332653860,1721405499590,-3427.99,0.00033972,14]
[332653861,1721405499599,-809.11,0.00033972,14]
[332653862,1721405499609,-500.0,0.00033972,14]
[332653863,1721405499618,-14395.48,0.00033972,14]
[332653864,1721405499627,-4458.07,0.00033972,14]
[332653865,1721405499636,-1021.19,0.00033972,14]
[332653866,1721405499646,-2412.68,0.00033972,14]
[332653867,1721405499657,-500.0,0.00033972,14]
[332653868,1721405499666,-711.73,0.00033972,14]
[332653869,1721405499675,-612.06,0.00033972,14]
[332653870,1721405499684,-986.06,0.00033972,14]
[332653871,1721405499694,-5078.8,0.00033972,14]
[332653872,1721405499703,-7014.28,0.00033972,14]
[332653873,1721405499713,-579.04,0.00033972,14]
[332653874,1721405499722,-1084.8,0.00033972,14]
[332653875,1721405499731,-3268.33,0.00033972,14]
[332653876,1721405499741,-9000.65,0.00033972,14]
[332653877,1721405499750,-4940.01,0.00033972,14]
[332653878,1721405499759,-4849.94,0.00033972,14]
[332653879,1721405499769,-9236.16,0.00033972,14]
[332653880,1721405499779,-1329.79,0.00033972,14]
[332653881,1721405499787,-1759.67,0.00033972,14]
[332653882,1721405499796,-500.0,0.00033972,14]
[332653883,1721405499806,-8561.66,0.00033972,14]
[332653884,1721405499815,-500.0,0.00033972,14]
[332653885,1721405499824,-500.0,0.00033972,14]
[332653886,1721405499834,-500.0,0.00033972,14]
[332653887,1721405499843,-7088.72,0.00033972,14]
[332653888,1721405499853,-9053.07,0.00033972,14]
[332653889,1721405499862,-7365.65,0.00033972,14]
[332653890,1721405499871,-3770.05,0.00033972,14]
[332653891,1721405499880,-1387.6,0.00033972,14]
[332653892,1721405499889,-1804.67,0.00033972,14]
[332653893,1721405499898,-687.74,0.00033972,14]
[332653894,1721405499910,-1637.67,0.00033972,14]
[332653895,1721405499919,-500.0,0.00033972,14]
[332653896,1721405499928,-500.0,0.00033972,14]
[332653897,1721405499937,-500.0,0.00033972,14]
[332653898,1721405499947,-500.0,0.00033972,14]
[332653899,1721405499956,-500.0,0.00033972,14]
[332653900,1721405499965,-6733.43,0.00033972,14]
[332653901,1721405499974,-1179.7,0.00033972,14]
[332653902,1721405499982,-7685.85,0.00033972,14]
[332653903,1721405499991,-1025.91,0.00033972,14]
[332653904,1721405500001,-2940.65,0.00033972,14]
[332653905,1721405500010,-673.81,0.00033972,14]
[332653906,1721405500019,-5069.82,0.00033972,14]
[332653907,1721405500028,-594.53,0.00033972,14]
[332653908,1721405500037,-3890.22,0.00033972,14]
[332653909,1721405500046,-3237.13,0.00033972,14]
[332653910,1721405500055,-1055.49,0.00033972,14]
[332653911,1721405500064,-500.0,0.00033972,14]
[332653912,1721405500074,-500.0,0.00033972,14]
[332653913,1721405500083,-2282.97,0.00033972,14]
[332653914,1721405500091,-2071.37,0.00033972,2]
[332653915,1721405500100,-5864.93,0.00033972,14]
[332653916,1721405500109,-500.0,0.00033972,14]
[332653917,1721405500118,-2285.44,0.00033972,14]
[332653918,1721405500127,-1204.2,0.00033972,14]
[332653919,1721405500137,-500.0,0.00033972,14]
[332653920,1721405500147,-6802.64,0.00033972,14]
[332653921,1721405500159,-1957.81,0.00033972,14]
[332653922,1721405500169,-810.81,0.00033972,14]
[332653923,1721405500179,-274.70009381,0.00033972,14]
[332653924,1721405500189,-1244.68,0.00033972,14]
[332653925,1721405500198,-844.39,0.00033972,14]
[332653926,1721405500207,-500.0,0.00033972,14]
[332653927,1721405500217,-3588.33,0.00033972,14]
[332653928,1721405500228,-854.9,0.00033972,14]
[332653929,1721405500239,-1951.81,0.00033972,14]
[332653930,1721405500253,-1558.1533819,0.00033972,14]
[332653931,1721405500980,-1058.55765,0.00033972,14]
[332653932,1721405500994,-1289.7389681,0.00033972,14]
[332653933,1721405501003,-865.64,0.00033972,14]
[332653934,1721405501014,-3507.5,0.00033972,14]
[332653935,1721405501023,-2603.35,0.00033972,14]
[332653936,1721405501032,-1805.65,0.00033972,14]
[332653937,1721405501041,-500.0,0.00033972,14]
[332653938,1721405501051,-1159.4,0.00033972,14]
[332653939,1721405501060,-6200.88,0.00033972,14]
[332653940,1721405501069,-633.47,0.00033972,14]
[332653941,1721405501079,-500.0,0.00033972,14]
[332653942,1721405501088,-896.2,0.00033972,14]
[332653943,1721405501097,-2326.61,0.00033972,14]
[332653944,1721405501107,-5674.73,0.00033972,14]
[332653945,1721405501116,-276.91402377,0.00033972,14]
[332653946,1721405501127,-795.61370028,0.00033972,14]
[332653947,1721405501139,-747.32227595,0.00033972,14]
[332653948,1721405501149,-1376.36868828,0.00033972,14]
[332653949,1721405501163,-14175.18131172,0.00033972,14]
[332653950,1721405501172,-500.0,0.00033972,14]
[332653951,1721405501182,-2542.41,0.00033972,14]
[332653952,1721405501191,-1130.18,0.00033972,14]
[332653953,1721405501201,-500.0,0.00033972,14]
[332653954,1721405501211,-500.0,0.00033972,14]
[332653955,1721405501220,-3436.5,0.00033972,14]
[332653956,1721405501230,-12275.18,0.00033972,14]
[332653957,1721405501239,-500.0,0.00033972,14]
[332653958,1721405501249,-540.53,0.00033972,14]
[332653959,1721405501263,-7174.87,0.00033972,14]
[332653960,1721405501272,-1873.05,0.00033972,14]
[332653961,1721405501282,-609.14,0.00033972,14]
[332653962,1721405501291,-3712.54,0.00033972,14]
[332653963,1721405501300,-1743.57,0.00033972,14]
[332653964,1721405501310,-20243.8,0.00033972,14]
[332653965,1721405501319,-3245.66146215,0.00033972,14]
[332653966,1721405501332,-546.69853785,0.00033972,14]
[332653967,1721405501341,-4689.56770162,0.00033972,14]
[332653968,1721405501379,-871.3,0.00033972,14]
[332653969,1721405501390,-268.06229838,0.00033972,14]
[332653970,1721405501398,-794.64,0.00033972,14]
[332653971,1721405501408,-522.89,0.00033972,14]
[332653972,1721405501417,-500.0,0.00033972,14]
[332653973,1721405501425,-5889.56,0.00033972,14]
[332653974,1721405501434,-500.0,0.00033972,14]
[332653975,1721405501442,-525.83,0.00033972,14]
[332653976,1721405501451,-178.3701265,0.00033972,14]
[332653977,1721405501461,-321.6298735,0.00033972,14]
[332653978,1721405501470,-197.27583364,0.00033972,14]
[332653979,1721405501480,-2924.66815476,0.00033972,14]
[332653980,1721405501490,-7825.6660116,0.00033972,14]
[332653981,1721405501499,-844.17434601,0.00033972,14]
[332653982,1721405501509,-1313.84597033,0.00033972,14]
[332653983,1721405501519,-8861.51968366,0.00033972,14]
[332653984,1721405501528,-5912.02,0.00033972,14]
[332653985,1721405501537,-500.0,0.00033972,14]
[332653986,1721405501545,-2246.16,0.00033972,14]
[332653987,1721405501554,-500.0,0.00033972,14]
[332653988,1721405501562,-6854.32400324,0.00033972,14]
[332653989,1721405501572,-326.065,0.00033972,14]
[332653990,1721405501584,-1049.12099676,0.00033972,14]
[332653991,1721405501595,-4655.89,0.00033972,14]
[332653992,1721405501605,-1033.47,0.00033972,14]
[332653993,1721405501616,-1465.61,0.00033972,14]
[332653994,1721405501625,-1464.16,0.00033972,14]
[332653995,1721405501636,-4196.57,0.00033972,14]